[Event "CCT Airthings Masters Play-In 2023"]
[Site "Online"]
[Date "2023.02.03"]
[Round "4"]
[White "Duhless"]
[Black "Njal28"]
[Result "1-0"]
[ECO "E04"]
[WhiteElo "2662"]
[BlackElo "2575"]
[Annotator "NA"]
[PlyCount "75"]
[EventDate "2023.02.03"]
[EventType "swiss"]
[EventCountry "NET"]
[SourceTitle "playchess.com"]
[Source "ChessBase"]
[SourceQuality "1"]
[TimeControl "600+2"]

1. d4 {[%emt 0:00:03]} Nf6 {[%emt 0:00:06]} 2. Nf3 {[%emt 0:00:01]} d5 {[%emt 0:00:03]} 3. c4 {[%emt 0:00:02]} e6 {[%emt 0:00:03]} 4. g3 {[%emt 0:00:01]} dxc4 {[%emt 0:00:10]} 5. Bg2 {[%emt 0:00:02]} Bb4+ {[%emt 0:00:00]} 6. Bd2 {[%emt 0:00:17]} a5 {[%emt 0:00:08]} 7. O-O {[%emt 0:00:13]} O-O {[%emt 0:00:07]} 8. Bg5 {[%emt 0:00:01]} h6 {[%emt 0:00:03]} 9. Bxf6 {[%emt 0:00:02]} Qxf6 {[%emt 0:00:00]} 10. a3 {[%emt 0:00:12]} Be7 {[%emt 0:00:33]} 11. Nbd2 {[%emt 0:00:27]} Rd8 {[%emt 0:01:11]} 12. Nxc4 {[%emt 0:00:25]} Bd7 {[%emt 0:01:38]} 13. Nfe5 {[%emt 0:00:43]} Ra7 {[%emt 0:00:47]} 14. Rc1 {[%emt 0:02:27]} Bf8 {[%emt 0:01:06]} 15. e3 {[%emt 0:01:06]} Be8 {[%emt 0:00:03]} 16. Qc2 {[%emt 0:00:15]} c5 {[%emt 0:00:50]} 17. dxc5 {[%emt 0:00:44]} Bxc5 {[%emt 0:00:01]} 18. Rfd1 {[%emt 0:00:21]} Rxd1+ {[%emt 0:01:39]} 19. Rxd1 {[%emt 0:00:40]} b5 {[%emt 0:00:02]} 20. Nxa5 {[%emt 0:00:29]} Qxe5 {[%emt 0:00:51]} 21. Rd8 {[%emt 0:00:03]} Rxa5 {[%emt 0:01:03]} 22. Rxe8+ {[%emt 0:00:10]} Bf8 {[%emt 0:00:01]} 23. Qc8 {[%emt 0:00:09]} Qd6 {[%emt 0:00:01]} 24. Rd8 {[%emt 0:00:13]} Qe7 {[%emt 0:00:09]} 25. Qxb8 {[%emt 0:00:02]} b4 {[%emt 0:00:04]} 26. Re8 {[%emt 0:00:22]} Qc5 {[%emt 0:00:06]} 27. Rc8 {[%emt 0:00:40]} Qe7 {[%emt 0:00:01]} 28. axb4 {[%emt 0:00:20]} Ra1+ {[%emt 0:00:00]} 29. Bf1 {[%emt 0:00:01]} Rd1 {[%emt 0:00:10]} 30. Kg2 {[%emt 0:00:17]} g6 {[%emt 0:00:02]} 31. Re8 {[%emt 0:00:11]} Qd6 {[%emt 0:00:00]} 32. Qxd6 {[%emt 0:00:00]} Rxd6 {[%emt 0:00:00]} 33. b5 {[%emt 0:00:02]} Rd2 {[%emt 0:00:04]} 34. b3 {[%emt 0:00:01]} Kg7 {[%emt 0:00:05]} 35. b6 {[%emt 0:00:01]} Rd7 {[%emt 0:00:01]} 36. Ba6 {[%emt 0:00:02]} Bc5 {[%emt 0:00:04]} 37. b7 {[%emt 0:00:02]} Ba7 {[%emt 0:00:00]} 38. Ra8 {[%emt 0:00:02]} 1-0

[Event "CCT Airthings Masters Play-In 2023"]
[Site "Online"]
[Date "2023.02.03"]
[Round "4"]
[White "Grandelius, Nils"]
[Black "Matibar"]
[Result "1/2-1/2"]
[ECO "A07"]
[WhiteElo "2660"]
[BlackElo "2492"]
[Annotator "TA"]
[PlyCount "69"]
[EventDate "2023.02.03"]
[EventType "swiss"]
[EventCountry "NET"]
[SourceTitle "playchess.com"]
[Source "ChessBase"]
[SourceQuality "1"]
[TimeControl "600+2"]

{[%evp 9,69,0,17,11,23,14,15,14,17,23,14,40,37,31,44,20,29,21,33,4,37,0,24,29,32,36,36,36,52,38,49,54,62,26,21,9,25,-1,847,-1,-1,-1,0,0,0,0,0,0,0,0,0,0,1,0,29,29,29,0,2,0,32,0]} 1. Nf3 {[%emt 0:00:03]} d5 {[%emt 0:00:10]} 2. g3 {[%emt 0:00:03]} Bf5 {[%emt 0:00:07]} 3. c4 {[%emt 0:00:25]} e6 {[%emt 0:00:03]} 4. cxd5 {[%emt 0:00:03]} exd5 {[%emt 0:00:04]} 5. Qb3 {[%emt 0:00:04]} Nc6 {[%emt 0:00:15]} 6. Bg2 {[%emt 0:00:29] A07: Réti Opening: New York and Capablanca Systems.} Rb8 {[%emt 0:00:35]} 7. O-O {[%emt 0:00:01]} Nf6 {[%emt 0:00:01] [#]} 8. d4 $146 {[%emt 0:00:39] The position is equal.} ({Predecessor:} 8. d3 Be7 9. Bf4 O-O 10. Nc3 a6 11. d4 h6 12. Rac1 Be6 13. Rfd1 Nh5 14. Bd2 {½-½ Sokolov,A (2480)-Keitlinghaus,L (2515) Copenhagen Aruna 1997 (5)}) 8... Be7 {[%emt 0:00:05]} 9. Nc3 {[%emt 0:00:11]} h6 {[%emt 0:00:04]} 10. Bf4 {[%emt 0:00:39]} O-O {[%emt 0:00:08]} 11. Rac1 {[%emt 0:00:01]} a6 {[%emt 0:00:18]} 12. a3 {[%emt 0:00:54]} Re8 {[%emt 0:00:05]} 13. Rfd1 {[%emt 0:00:03]} Bd6 {[%emt 0:01:58]} 14. Bxd6 {[%emt 0:01:04]} Qxd6 {[%emt 0:00:03]} 15. e3 {[%emt 0:00:02][%cal Of3e5]} (15. Nh4 {seems wilder.} Be4 16. Nxe4 dxe4 17. Nf5) 15... Bg4 {[%emt 0:00:19]} 16. Re1 {[%emt 0:02:23][%cal Bd1e1,Be1e4,Be4f4][%mdl 32]} Bxf3 {[%emt 0:00:45]} 17. Bxf3 {[%emt 0:00:00]} Ne7 {[%emt 0:00:01][%cal Bc6e7,Be7f5,Bf5d4][%mdl 32]} 18. e4 {[%emt 0:00:45]} dxe4 {[%emt 0:00:03]} 19. Nxe4 {[%emt 0:00:00]} Nxe4 {[%emt 0:00:02]} 20. Rxe4 {[%emt 0:00:00]} Nf5 {[%emt 0:00:16]} 21. Rf4 {[%emt 0:00:02]} Nxd4 {[%emt 0:00:44]} 22. Qxf7+ {[%emt 0:00:04]} Kh8 {[%emt 0:00:02] [#] ...Rf8 is the strong threat.} 23. Rxc7 {[%emt 0:00:19][%csl Gc7][%cal Rf7g7]} (23. Qxc7 Qxc7 24. Rxc7 Ne6 $17) 23... Re1+ {[%emt 0:00:32]} 24. Kg2 {[%emt 0:00:02][%csl Gc7][%cal Rf7g7]} Ne6 {[%emt 0:00:00]} 25. Rfc4 $132 {[%emt 0:01:26][%mdl 2048] Threatens to win with Rc8+. White is not holding back. Really sharp! Active counter play!} ({Much worse is} 25. Rxb7 Rf8 26. Rd7 Qb8 $17) (25. Rd7 Nxf4+ 26. gxf4 Qf8 $15) 25... Nxc7 {[%emt 0:01:16]} (25... Qd3 $5 26. Rc8+ $8 (26. Rxb7 $2 Qf1#) 26... Rxc8 27. Rxc8+ Kh7 $11) 26. Rxc7 {[%emt 0:00:00][%csl Gc7][%cal Rf7g7] [#]} Qf6 {[%emt 0:01:24]} 27. Qxf6 {[%emt 0:00:11]} ({But not} 27. Rxb7 Qxf7 28. Rxf7 Rxb2 $17) 27... gxf6 {[%emt 0:00:00]} 28. Bxb7 $11 {[%emt 0:00:02][%mdl 4096] Endgame KRR-KRB} a5 {[%emt 0:00:08]} 29. b3 {[%emt 0:00:08]} Re5 {[%emt 0:00:52]} 30. Rd7 {[%emt 0:00:14]} Rbe8 {[%emt 0:00:10]} 31. Bd5 {[%emt 0:00:10]} R8e7 {[%emt 0:00:01]} 32. Rd8+ {[%emt 0:00:04]} Re8 {[%emt 0:00:02]} 33. Rd7 {[%emt 0:00:10]} R8e7 {[%emt 0:00:01]} 34. Rd8+ {[%emt 0:00:09]} Re8 {[%emt 0:00:02]} 35. Rd7 {[%emt 0:00:00] Weighted Error Value: White=0.08 (flawless) /Black=0.05 (flawless)} 1/2-1/2

[Event "CCT Airthings Masters Play-In 2023"]
[Site "Online"]
[Date "2023.02.03"]
[Round "4"]
[White "kuli4ik"]
[Black "rpragchess"]
[Result "1/2-1/2"]
[ECO "D02"]
[WhiteElo "2647"]
[BlackElo "2564"]
[Annotator "TA"]
[PlyCount "55"]
[EventDate "2023.02.03"]
[EventType "swiss"]
[EventCountry "NET"]
[SourceTitle "playchess.com"]
[Source "ChessBase"]
[SourceQuality "1"]
[TimeControl "600+2"]

{[%evp 13,55,10,17,-3,0,0,13,0,0,0,0,0,0,0,0,0,8,4,4,3,5,4,38,27,41,41,52,48,42,30,30,36,91,37,37,47,52,26,87,0,46,0,80,0]} 1. Nf3 {[%emt 0:00:03]} Nf6 {[%emt 0:00:04]} 2. g3 {[%emt 0:00:01]} d5 {[%emt 0:00:13]} 3. Bg2 {[%emt 0:00:02]} c5 {[%emt 0:00:06]} 4. O-O {[%emt 0:00:07]} e6 {[%emt 0:00:00]} 5. d4 {[%emt 0:00:11]} cxd4 {[%emt 0:00:03]} 6. Nxd4 {[%emt 0:00:07]} e5 {[%emt 0:00:01]} 7. Nb3 {[%emt 0:00:01]} Be6 {[%emt 0:00:01]} 8. c4 {[%emt 0:00:07] Nc3 would be deadly. D02: 1 d4 d5 2 Nf3 sidelines, including 2...Nf6 3 g3 and 2...Nf6 3 Bf4.} Nc6 {[%emt 0:00:14]} (8... dxc4 $2 9. Qxd8+ Kxd8 10. Bxb7 $18 (10. Na5 Nc6 $16)) 9. cxd5 {[%emt 0:00:03]} Nxd5 {[%emt 0:00:05]} 10. Bd2 {[%emt 0:00:54][%cal Bc1d2,Bd2e3,Be3c5][%mdl 32] The position is equal.} Be7 {[%emt 0:00:23]} 11. Nc3 {[%emt 0:00:01]} O-O {[%emt 0:00:01]} 12. Nxd5 {[%emt 0:00:04]} Bxd5 {[%emt 0:00:01]} 13. Be3 {[%emt 0:00:07]} Bxg2 {[%emt 0:00:09]} 14. Kxg2 {[%emt 0:00:01]} (14. Qxd8 {simplifies} Raxd8 15. Kxg2 Rd5 16. Rac1) 14... Qc8 {[%emt 0:00:11]} 15. Rc1 {[%emt 0:00:19]} Qe6 {[%emt 0:00:07]} 16. Qc2 {[%emt 0:00:10]} Rfd8 {[%emt 0:01:00]} 17. Qc4 {[%emt 0:00:06] [#]} Rd5 $146 {[%emt 0:00:07]} ({Predecessor:} 17... Qxc4 18. Rxc4 Rd7 19. Rfc1 Rad8 20. Ra4 f5 21. a3 Kf7 22. Na5 Nb8 23. Rac4 b6 24. Nc6 Nxc6 25. Rxc6 Rd6 26. h4 {½-½ Fuest,M (2230)-Rapatinski,K (2185) Muensterland Verbandsklasse-A 0506 2005 (6.1)}) 18. Bc5 {[%emt 0:00:28]} Rad8 {[%emt 0:00:51]} 19. e4 {[%emt 0:00:12]} R5d7 {[%emt 0:00:07]} 20. Qxe6 {[%emt 0:00:06]} fxe6 {[%emt 0:00:01]} 21. Bxe7 {[%emt 0:00:05]} Rxe7 {[%emt 0:00:01]} 22. Rfd1 {[%emt 0:00:02]} Rf8 {[%emt 0:00:43]} (22... Rxd1 $14 23. Rxd1 Kf7) 23. Nc5 {[%emt 0:00:15]} (23. Rd6 $16) 23... Nd4 $14 {[%emt 0:00:07]} 24. Nd3 $36 {[%emt 0:00:08][%mdl 2048] White has the initiative.} Nf3 {[%emt 0:00:03]} 25. Ne1 {[%emt 0:00:14]} Nd4 {[%emt 0:00:31]} (25... Nxe1+ $11 26. Rxe1 Rd8) 26. Nd3 {[%emt 0:00:04]} Nf3 {[%emt 0:01:02]} 27. Ne1 {[%emt 0:00:16]} Nd4 {[%emt 0:00:16]} 28. Nd3 {[%emt 0:00:15] Weighted Error Value: White=0.13 (very precise) /Black=0.10 (very precise)} (28. b4 $16) 1/2-1/2

[Event "CCT Airthings Masters Play-In 2023"]
[Site "Online"]
[Date "2023.02.03"]
[Round "4"]
[White "wonderfultime"]
[Black "Alexandr_Predke"]
[Result "0-1"]
[ECO "A46"]
[WhiteElo "2643"]
[BlackElo "2555"]
[Annotator "TA"]
[PlyCount "166"]
[EventDate "2023.02.03"]
[EventType "swiss"]
[EventCountry "NET"]
[SourceTitle "playchess.com"]
[Source "ChessBase"]
[SourceQuality "1"]
[TimeControl "600+2"]

{[%evp 9,166,-2,6,0,0,0,-8,-11,0,-5,0,0,13,5,25,17,27,14,27,-6,0,0,17,17,24,8,39,28,28,22,18,20,17,18,48,57,97,99,100,101,102,103,98,105,107,89,110,106,106,121,145,135,139,139,139,139,139,108,121,123,139,89,89,89,89,89,89,89,89,89,89,89,89,89,89,89,89,89,89,89,89,89,89,0,89,0,89,0,89,89,89,89,89,0,89,89,89,0,89,89,89,89,89,0,89,0,0,0,0,0,0,0,0,0,89,89,89,0,0,0,89,89,89,89,89,0,1,0,0,0,89,89,89,89,89,0,0,0,0,0,0,0,0,-603,-308,-1135,-1072,-897,-354,-29946,-29945,-7043,-349,-29948,-29946,-8813,-8185,-8175,-7531]} 1. d4 {[%emt 0:00:13]} Nf6 {[%emt 0:01:23]} 2. Nf3 {[%emt 0:00:02]} e6 {[%emt 0:00:06]} 3. Bf4 {[%emt 0:00:01]} c5 {[%emt 0:00:03]} 4. c3 {[%emt 0:00:01]} Nc6 {[%emt 0:00:01]} 5. e3 {[%emt 0:00:01]} h6 {[%emt 0:00:01]} 6. Bd3 {[%emt 0:00:39] A46: 1 d4 Nf6 2 Nf3 e6: Torre, London and Colle Systems.} Nh5 {[%emt 0:00:05]} 7. Bg3 {[%emt 0:00:06]} Nxg3 {[%emt 0:00:06]} 8. hxg3 {[%emt 0:00:00] The position is equal.} d5 {[%emt 0:00:35]} 9. Nbd2 {[%emt 0:00:05]} Qb6 {[%emt 0:00:18]} 10. Rb1 {[%emt 0:00:03]} cxd4 {[%emt 0:00:34]} 11. exd4 {[%emt 0:00:02]} Bd6 {[%emt 0:00:50]} 12. Qe2 {[%emt 0:00:08] [#]} Qd8 $146 {[%emt 0:00:14]} ({Predecessor:} 12... Bd7 13. a3 Rc8 14. g4 Kd8 15. g5 Kc7 16. g6 fxg6 17. Bxg6 Rhf8 18. O-O Rf6 {0-1 Gabriel,C (1588)-Vieira,A (1801) Sao Paulo Karman Cup 2018 (2)}) 13. Rd1 {[%emt 0:01:08]} Bd7 {[%emt 0:00:10]} 14. Ne5 {[%emt 0:01:14]} Bxe5 {[%emt 0:00:09]} 15. dxe5 {[%emt 0:00:02]} Qc7 {[%emt 0:00:01]} (15... Qb6 $5 {[%cal Rb6b2]}) 16. Nf3 {[%emt 0:00:12]} O-O-O {[%emt 0:00:08]} 17. O-O {[%emt 0:00:13]} f6 {[%emt 0:01:06]} 18. Rfe1 {[%emt 0:00:03]} fxe5 {[%emt 0:00:11]} 19. Nxe5 {[%emt 0:00:02]} Nxe5 {[%emt 0:00:00]} 20. Qxe5 {[%emt 0:00:00]} Qxe5 {[%emt 0:00:01]} 21. Rxe5 {[%emt 0:00:01]} g5 {[%emt 0:00:25]} 22. c4 {[%emt 0:01:27]} Rhf8 {[%emt 0:00:54]} 23. cxd5 {[%emt 0:00:28]} exd5 {[%emt 0:00:00]} 24. Rxd5 {[%emt 0:00:02]} Be6 {[%emt 0:00:03]} 25. Rxd8+ {[%emt 0:00:41]} Rxd8 $16 {[%emt 0:00:00][%mdl 4096] Endgame KRB-KRB} 26. a3 {[%emt 0:00:01]} Kc7 {[%emt 0:00:25]} 27. f3 {[%emt 0:00:15]} Bb3 {[%emt 0:01:24]} 28. Rc1+ {[%emt 0:00:03]} Kb6 {[%emt 0:00:01]} 29. Rc3 {[%emt 0:00:06]} Bd5 {[%emt 0:00:11]} 30. g4 {[%emt 0:00:07]} Bc6 {[%emt 0:00:18]} 31. Kf2 {[%emt 0:00:02]} Re8 {[%emt 0:00:04]} 32. Rc1 {[%emt 0:00:23]} a5 {[%emt 0:00:08]} 33. g3 {[%emt 0:00:24]} Rf8 {[%emt 0:00:05]} 34. Be2 {[%emt 0:00:40]} Rd8 {[%emt 0:00:03]} 35. Rd1 {[%emt 0:01:20] Prevents Rd2} ({Better is} 35. b4) 35... Rxd1 {[%emt 0:00:02]} 36. Bxd1 {[%emt 0:00:00] KB-KB} Kc5 {[%emt 0:00:00]} 37. Ke3 {[%emt 0:00:02]} b6 {[%emt 0:00:06]} 38. f4 {[%emt 0:00:01]} Kd6 {[%emt 0:00:03]} 39. Bf3 {[%emt 0:00:11]} Bd7 {[%emt 0:00:09]} 40. Kd4 {[%emt 0:00:07]} Bc8 {[%emt 0:00:09]} 41. b4 {[%emt 0:00:07]} axb4 {[%emt 0:00:02]} 42. axb4 {[%emt 0:00:01]} Bd7 {[%emt 0:00:04]} 43. f5 {[%emt 0:00:06]} Bb5 {[%emt 0:00:06]} 44. Bd1 {[%emt 0:00:21]} Bc6 {[%emt 0:00:06]} 45. Be2 {[%emt 0:00:05]} Ba4 {[%emt 0:00:15]} 46. Bf3 {[%emt 0:00:09]} Bb5 $1 {[%emt 0:00:02]} 47. Bd1 {[%emt 0:00:01]} Bc6 $1 {[%emt 0:00:02]} 48. Be2 {[%emt 0:00:08] Dodges Bb5} Ba4 $1 {[%emt 0:00:01]} 49. Ke3 {[%emt 0:00:03]} Ke5 {[%emt 0:00:04]} 50. Bf3 {[%emt 0:00:00]} Bb5 {[%emt 0:00:04]} 51. Be2 {[%emt 0:00:02]} (51. Bg2 $16) 51... Bc6 {[%emt 0:00:03]} (51... Ba4 $11) 52. Kd2 {[%emt 0:00:01]} Bd5 {[%emt 0:00:12]} 53. Ke3 {[%emt 0:00:02]} Bc6 $1 {[%emt 0:00:02]} 54. Bc4 {[%emt 0:00:01]} Bb7 {[%emt 0:00:05]} 55. Bf7 {[%emt 0:00:02]} Bc6 {[%emt 0:00:01]} 56. Kd3 {[%emt 0:00:03]} (56. Bb3 $16) 56... Bb5+ {[%emt 0:00:01]} (56... Bf3 $11 {remains equal.}) 57. Kc3 {[%emt 0:00:00]} (57. Kd2 $1 $16) 57... Be2 $11 {[%emt 0:00:02]} 58. Bh5 {[%emt 0:00:01]} Bb5 {[%emt 0:00:04]} 59. Kd2 {[%emt 0:00:02]} Bc6 {[%emt 0:00:05]} 60. Kd3 {[%emt 0:00:01]} Bb5+ {[%emt 0:00:01]} 61. Ke3 {[%emt 0:00:00]} Bc4 {[%emt 0:00:02] Prevents Bf7.} (61... Kf6 $11) 62. Be8 $16 {[%emt 0:00:03]} Bb3 {[%emt 0:00:02]} 63. Bb5 {[%emt 0:00:02]} (63. Kd2 $16) 63... Bd1 $11 {[%emt 0:00:03]} 64. Be2 {[%emt 0:00:01]} Bb3 {[%emt 0:00:01]} (64... Ba4 $1 $11) 65. Kd3 {[%emt 0:00:01]} Bd5 {[%emt 0:00:01]} 66. Kc3 {[%emt 0:00:00]} Bf7 {[%emt 0:00:03]} 67. Bc4 {[%emt 0:00:02]} ({White should try} 67. Bd1 $16) 67... Be8 $1 {[%emt 0:00:01]} 68. Be6 {[%emt 0:00:03]} Bb5 {[%emt 0:00:02] And now ...Be2 would win.} 69. Bc4 {[%emt 0:00:01] Repels Be2} Bc6 {[%emt 0:00:00] [#]} (69... Be8 $1 $11 {keeps the balance.}) 70. Be2 $1 $16 {[%emt 0:00:04]} Bd5 {[%emt 0:00:01]} 71. Bd1 {[%emt 0:00:01]} Bf7 {[%emt 0:00:03]} 72. Bb3 {[%emt 0:00:01]} ({White should play} 72. Bf3 $16) 72... Be8 $1 $11 {[%emt 0:00:01]} 73. Kc4 {[%emt 0:00:01]} Bf7+ {[%emt 0:00:01]} 74. Kc3 {[%emt 0:00:01]} Be8 $1 {[%emt 0:00:01]} 75. Bc4 {[%emt 0:00:09]} Bc6 {[%emt 0:00:01] White must now prevent ...Bf3.} 76. Be6 $2 {[%emt 0:00:03][%mdl 8192]} (76. Bf1 $11) 76... Bf3 $19 {[%emt 0:00:02]} 77. Kc4 $2 {[%emt 0:00:05]} (77. Bd7 Bxg4 78. f6) 77... Be2+ {[%emt 0:00:02]} 78. Kc3 {[%emt 0:00:03]} Bxg4 {[%emt 0:00:02]} 79. Kc4 $2 {[%emt 0:00:03]} (79. Bc4 $19) 79... Bxf5 {[%emt 0:00:04]} 80. Bf7 {[%emt 0:00:02]} Bd7 $2 {[%emt 0:00:03]} (80... Be6+ 81. Bxe6 Kxe6) 81. Bh5 $2 {[%emt 0:00:01] [#]} (81. Kd3 $19) 81... Ke4 $1 {[%emt 0:00:02]} 82. Bd1 {[%emt 0:00:04]} g4 {[%emt 0:00:04]} 83. Kc3 {[%emt 0:00:03]} Ke3 {[%emt 0:00:03] Weighted Error Value: White=0.18 (very precise) /Black=0.08 (flawless)} 0-1

[Event "CCT Airthings Masters Play-In 2023"]
[Site "Online"]
[Date "2023.02.03"]
[Round "4"]
[White "NikoTheodorou"]
[Black "crescentmoon"]
[Result "1-0"]
[ECO "E09"]
[WhiteElo "2642"]
[BlackElo "2746"]
[Annotator "TA"]
[PlyCount "61"]
[EventDate "2023.02.03"]
[EventType "swiss"]
[EventCountry "NET"]
[SourceTitle "playchess.com"]
[Source "ChessBase"]
[SourceQuality "1"]
[TimeControl "600+2"]

{[%evp 27,61,15,33,29,51,50,57,51,64,52,80,77,86,96,102,106,112,55,137,111,218,223,224,210,646,603,29986,1435,29989,29990,29996,29997,29997,6579,29998,29999]} 1. d4 {[%emt 0:00:03]} Nf6 {[%emt 0:01:52]} 2. c4 {[%emt 0:00:09]} e6 {[%emt 0:00:05]} 3. Nf3 {[%emt 0:00:03]} d5 {[%emt 0:00:03]} 4. g3 {[%emt 0:00:00]} Bb4+ {[%emt 0:00:03]} 5. Bd2 {[%emt 0:00:02]} Be7 {[%emt 0:00:02]} 6. Bg2 {[%emt 0:00:01]} O-O {[%emt 0:00:01]} 7. O-O {[%emt 0:00:00]} c6 {[%emt 0:00:02]} 8. Qc2 {[%emt 0:00:01]} Nbd7 {[%emt 0:00:03]} 9. Bf4 {[%emt 0:00:01]} Nh5 {[%emt 0:00:07]} 10. Bc1 {[%emt 0:00:05]} Nhf6 {[%emt 0:00:03]} 11. Nbd2 {[%emt 0:00:29]} b6 {[%emt 0:00:16]} 12. e4 {[%emt 0:00:01]} Bb7 {[%emt 0:00:24]} 13. e5 {[%emt 0:00:16]} Ne8 {[%emt 0:00:03]} 14. cxd5 {[%emt 0:00:01]} cxd5 {[%emt 0:00:06]} 15. Re1 {[%emt 0:00:09] E09: Closed Catalan: Main Line: 7 Qc2 c6 8 Nbd2.} Qc8 {[%emt 0:00:39]} 16. Qd1 {[%emt 0:00:08] [#]} a5 $146 {[%emt 0:00:09]} ({Predecessor:} 16... Ba6 17. Nb1 Nc7 18. h4 Nb8 19. Bg5 Qd7 20. Nc3 Nc6 21. Rc1 Rfc8 22. Nh2 Bf8 23. Ng4 Ne8 24. h5 h6 25. Bf4 Nb4 26. Bf1 Bxf1 27. Rxf1 Nc6 28. Rc2 Na5 29. Ne3 {½-½ Halkias,S (2530)-Polak,T (2527) BL2-Sued 1920 2019 (7.4)}) 17. h4 {[%emt 0:00:03] White is slightly better.} Ba6 {[%emt 0:00:06]} 18. Nf1 {[%emt 0:00:04]} b5 {[%emt 0:01:15]} 19. Bg5 {[%emt 0:00:05]} Bxg5 {[%emt 0:00:25]} 20. hxg5 {[%emt 0:00:10]} b4 {[%emt 0:00:10]} 21. Ne3 {[%emt 0:00:15]} Qb7 {[%emt 0:00:13] [#]} 22. Ng4 {[%emt 0:00:15]} ({Better is} 22. g6 $1 $16 {[%cal Rg6f7]} h6 23. gxf7+ Rxf7 24. Nxd5 exd5 25. e6 {[%mdl 64] Deflection, Double Attack}) 22... Rc8 {[%emt 0:00:07]} ({Black should try} 22... Nc7 $14) 23. Qd2 {[%emt 0:00:52]} Kh8 {[%emt 0:00:16] [#]} (23... Nb6 $16) 24. Bf1 $1 $18 {[%emt 0:00:21] Threatens to win with Bxa6.} Bxf1 {[%emt 0:00:15]} 25. Rxf1 {[%emt 0:00:16] Hoping for Kg2.} Nc7 $2 {[%emt 0:00:13]} (25... b3 26. Kg2 (26. Qxa5 Ra8 $14 {[%mdl 64] Deflection}) 26... bxa2) 26. Kg2 {[%emt 0:00:08] aiming for Rh1.} Rg8 {[%emt 0:01:04]} 27. Rh1 {[%emt 0:00:34]} (27. g6 $142 fxg6 28. Rh1 Rge8 29. Ng5 h5 30. Nf7+ Kg8 31. Nd6 Qa6 32. Qg5 (32. Qf4 Rf8 $16)) 27... Nf8 {[%emt 0:00:03] [#]} 28. g6 $1 {[%emt 0:01:24][%mdl 512]} fxg6 {[%emt 0:00:08]} (28... Ne8 29. Ng5) 29. Ng5 {[%emt 0:00:01][%cal Rg5f7]} h5 {[%emt 0:00:01]} 30. Nf7+ {[%emt 0:00:00]} Kh7 {[%emt 0:00:01] [#]} 31. Nf6+ $1 {[%emt 0:00:00][%mdl 576] Deflection.   Weighted Error Value: White=0.06 (flawless) /Black=1.13} 1-0

[Event "CCT Airthings Masters Play-In 2023"]
[Site "Online"]
[Date "2023.02.03"]
[Round "4"]
[White "VincentKeymer"]
[Black "OK97"]
[Result "1-0"]
[ECO "A11"]
[WhiteElo "2642"]
[BlackElo "2524"]
[Annotator "NA"]
[PlyCount "87"]
[EventDate "2023.02.03"]
[EventType "swiss"]
[EventCountry "NET"]
[SourceTitle "playchess.com"]
[Source "ChessBase"]
[SourceQuality "1"]
[TimeControl "600+2"]

1. Nf3 {[%emt 0:00:03]} d5 {[%emt 0:00:06]} 2. e3 {[%emt 0:00:01]} Nf6 {[%emt 0:00:01]} 3. c4 {[%emt 0:00:01]} e6 {[%emt 0:00:01]} 4. Nc3 {[%emt 0:00:00]} c6 {[%emt 0:00:09]} 5. b3 {[%emt 0:00:01]} Bd6 {[%emt 0:00:01]} 6. Bb2 {[%emt 0:00:01]} O-O {[%emt 0:00:01]} 7. Be2 {[%emt 0:00:00]} Re8 {[%emt 0:00:17]} 8. O-O {[%emt 0:00:07]} e5 {[%emt 0:00:14]} 9. cxd5 {[%emt 0:00:03]} cxd5 {[%emt 0:00:01]} 10. Nb5 {[%emt 0:00:55]} Nc6 {[%emt 0:00:20]} 11. Nxd6 {[%emt 0:00:03]} Qxd6 {[%emt 0:00:00]} 12. d4 {[%emt 0:00:28]} e4 {[%emt 0:00:02]} 13. Ne5 {[%emt 0:00:01]} Nd7 {[%emt 0:00:08]} 14. Nxc6 {[%emt 0:00:01]} bxc6 {[%emt 0:00:02]} 15. a4 {[%emt 0:00:02]} Re6 {[%emt 0:00:15]} 16. Ba3 {[%emt 0:00:08]} Qc7 {[%emt 0:00:07]} 17. Qc2 {[%emt 0:00:23]} Rh6 {[%emt 0:00:30]} 18. h3 {[%emt 0:00:05]} Nf6 {[%emt 0:02:02]} 19. Rfc1 {[%emt 0:00:21]} Ng4 {[%emt 0:00:08]} 20. Bxg4 {[%emt 0:00:49]} Bxg4 {[%emt 0:00:05]} 21. hxg4 {[%emt 0:01:41]} Qh2+ {[%emt 0:00:03]} 22. Kf1 {[%emt 0:00:01]} Qh1+ {[%emt 0:00:00]} 23. Ke2 {[%emt 0:00:01]} Qxg2 {[%emt 0:00:01]} 24. Rf1 {[%emt 0:00:22]} Qxg4+ {[%emt 0:01:21]} 25. Kd2 {[%emt 0:00:03]} Rf6 {[%emt 0:00:09]} 26. Kc3 {[%emt 0:00:16]} h5 {[%emt 0:00:38]} 27. Rg1 {[%emt 0:00:15]} Qf5 {[%emt 0:00:14]} 28. Be7 {[%emt 0:00:19]} Re6 {[%emt 0:00:07]} 29. Rg5 {[%emt 0:00:24]} Qf3 {[%emt 0:00:32]} 30. Rg3 {[%emt 0:00:15]} Qf5 {[%emt 0:00:06]} 31. Rag1 {[%emt 0:00:03]} g6 {[%emt 0:01:10]} 32. Rg5 {[%emt 0:00:17]} Qh3 {[%emt 0:00:01]} 33. Bc5 {[%emt 0:00:26]} Rf6 {[%emt 0:00:17]} 34. Qe2 {[%emt 0:00:05]} Kh7 {[%emt 0:00:07]} 35. Be7 {[%emt 0:01:00]} Re6 {[%emt 0:00:46]} 36. R5g3 {[%emt 0:00:54]} Qf5 {[%emt 0:00:09]} 37. Bh4 {[%emt 0:00:08]} c5 {[%emt 0:00:31]} 38. Rg5 {[%emt 0:00:12]} cxd4+ {[%emt 0:00:01]} 39. Kb2 {[%emt 0:00:01]} Qh3 {[%emt 0:00:22]} 40. Rxh5+ {[%emt 0:00:03]} Kg8 {[%emt 0:00:02]} 41. Bf6 {[%emt 0:00:07]} Qxh5 {[%emt 0:00:03]} 42. Qxh5 {[%emt 0:00:02]} Rxf6 {[%emt 0:00:01]} 43. Qxd5 {[%emt 0:00:00]} Rxf2+ {[%emt 0:00:02]} 44. Ka3 {[%emt 0:00:02]} 1-0